[Event "FIDE Womens Grand Prix-I 2022-23"]
[Site "Nur-Sultan"]
[Date "2022.09.21"]
[Round "4.6"]
[White "Lagno, Kateryna"]
[Black "Kashlinskaya, Alina"]
[Result "1/2-1/2"]
[ECO "C01"]
[WhiteElo "2547"]
[BlackElo "2504"]
[Annotator "TA"]
[PlyCount "164"]
[EventDate "2022.09.15"]
[EventType "tourn"]
[EventCountry "KAZ"]
[SourceTitle "playchess.com"]
[Source "ChessBase"]
[SourceQuality "1"]
[TimeControl "40/5400+30:1800+30"]

{[%evp 12,164,10,8,20,18,22,18,11,8,21,11,26,18,44,38,43,16,6,8,12,14,4,19,9,16,6,8,22,15,12,0,10,0,0,0,0,6,12,8,16,9,25,0,216,104,104,104,104,104,104,104,104,104,104,97,104,0,104,104,104,104,104,0,104,62,62,62,62,62,62,62,62,62,62,62,62,62,62,62,62,62,62,62,62,62,62,62,62,62,62,62,62,62,62,48,48,0,0,0,0,0,41,41,41,49,49,49,49,49,49,49,49,49,49,49,49,49,49,49,49,49,49,49,49,0,49,0,49,0,0,0,0,0,0,0,0,0,0,0,0,0,0,0,0,0,0,0,0,0,0,0,0,0,0]} 1. e4 {[%emt 0:00:02]} e6 {[%emt 0:00:07]} 2. d4 {[%emt 0:00:18]} d5 {[%emt 0:00:06]} 3. exd5 {[%emt 0:00:16]} exd5 {[%emt 0:00:08]} 4. Nf3 {[%emt 0:00:07]} Bd6 {[%emt 0:01:45]} 5. c4 {[%emt 0:00:33][%cal Bc2c4,Bc4c5][%mdl 32]} Nf6 {[%emt 0:00:19]} 6. c5 {[%emt 0:00:18]} Be7 {[%emt 0:00:18]} 7. Bd3 {[%emt 0:00:10]} O-O {[%emt 0:00:35] C01: French: Exchange Variation.} 8. O-O {[%emt 0:05:02]} b6 {[%emt 0:00:11]} 9. Be3 {[%emt 0:00:13]} bxc5 {[%emt 0:04:58]} 10. dxc5 {[%emt 0:01:23]} Ng4 {[%emt 0:00:21]} 11. Bf4 {[%emt 0:00:54]} Nf6 {[%emt 0:00:28]} (11... Bxc5 {is interesting.} 12. Bxh7+ Kxh7 13. Qc2+ Kg8) 12. Qc2 {[%emt 0:19:46] [#]} Na6 $146 {[%emt 0:01:51]} ({Predecessor:} 12... a5 13. Nd4 Ba6 14. Rc1 Bxd3 15. Qxd3 Ne4 16. c6 Bg5 17. Bxg5 Qxg5 18. Nc3 Na6 19. Nxe4 dxe4 20. Qxe4 {½-½ (58) Tari,A (2629)-Nikologorskiy,K (2413) Chess.com INT 2019}) 13. Bxa6 {[%emt 0:01:08]} Bxa6 {[%emt 0:03:17]} 14. Rd1 {[%emt 0:07:09]} Ne4 {[%emt 0:04:15]} 15. Nc3 {[%emt 0:01:18]} Nxc3 {[%emt 0:02:34]} 16. Qxc3 {[%emt 0:00:06]} Be2 $1 {[%emt 0:02:12] This bishop pair is nice.} 17. Rd2 {[%emt 0:01:41]} Bxf3 {[%emt 0:05:14]} 18. Qxf3 {[%emt 0:00:06]} c6 {[%emt 0:11:21]} 19. b4 {[%emt 0:01:15][%cal Ob4b5]} a6 {[%emt 0:18:05]} 20. Re1 {[%emt 0:17:24]} Bg5 {[%emt 0:04:27]} 21. h3 {[%emt 0:12:14]} h6 {[%emt 0:04:23]} 22. Rd3 {[%emt 0:05:38]} Re8 {[%emt 0:06:34]} 23. Rxe8+ {[%emt 0:03:38]} Qxe8 {[%emt 0:00:02]} 24. Re3 {[%emt 0:04:15] Against Qe1+} Qd8 {[%emt 0:00:15]} 25. Bxg5 {[%emt 0:01:45]} Qxg5 $11 {[%emt 0:00:25][%mdl 4096] Endgame KQR-KQR} 26. Qe2 {[%emt 0:00:28]} g6 {[%emt 0:08:14]} 27. g3 {[%emt 0:00:52]} a5 $2 {[%emt 0:04:42] [#]} (27... d4 $11 {and Black has nothing to worry.} 28. Re5 (28. Re8+ Rxe8 29. Qxe8+ Kg7 $11) 28... d3 29. Rxg5 (29. Re8+ Rxe8 30. Qxe8+ Kg7 $17) 29... dxe2) 28. Re8+ {[%emt 0:01:26]} (28. bxa5 $1 $18 {and the rest is easy. And now Re8+ would win.} Qd8 29. a6) 28... Rxe8 $16 {[%emt 0:00:07]} 29. Qxe8+ {[%emt 0:00:04] KQ-KQ} Kg7 {[%emt 0:00:15]} 30. bxa5 {[%emt 0:00:58] aiming for a6. White is more active.} Qc1+ {[%emt 0:09:26]} 31. Kg2 {[%emt 0:00:04]} Qc4 {[%emt 0:06:04]} (31... Qxc5 $2 32. Qe5+ Kh7 33. Qc7 $18) 32. Qe5+ {[%emt 0:09:25]} ({Much weaker is} 32. Qxc6 $6 Qe4+ 33. f3 Qe2+ 34. Kg1 Qd1+ 35. Kh2 Qe2+ 36. Kg1 Qd1+ 37. Kh2 Qe2+ 38. Kg1 $11) 32... Kg8 {[%emt 0:00:01]} 33. Qb8+ {[%emt 0:00:50]} Kg7 {[%emt 0:00:01]} 34. Qe5+ {[%emt 0:02:07]} Kg8 $1 {[%emt 0:00:01]} 35. a3 {[%emt 0:00:59]} Qd3 {[%emt 0:04:16]} (35... Qxc5 $2 36. Qb8+ Kg7 37. a6 $18) 36. Qe3 {[%emt 0:01:15]} Qc4 {[%emt 0:00:11]} 37. Qf4 {[%emt 0:01:18]} (37. Qe8+ $16 Kg7 38. Qe5+ (38. Qxc6 Qe4+ 39. f3 Qe2+ 40. Kg1 Qe1+ 41. Kg2 Qe2+ 42. Kg1 Qe1+ 43. Kg2 Qe2+ $11) 38... Kg8 39. Qb8+ (39. Qe8+ Kg7 $16) 39... Kg7 40. Qb4) 37... Qd3 {[%emt 0:00:32]} (37... d4 $1 $11 {keeps the balance.}) 38. Qxh6 {[%emt 0:01:22] [#] Qe3 is the strong threat.} Qxa3 {[%emt 0:00:38]} 39. Qe3 {[%emt 0:00:18]} Qxa5 {[%emt 0:00:28]} 40. Qe8+ {[%emt 0:00:05]} Kg7 {[%emt 0:00:02]} 41. Qxc6 {[%emt 0:30:12]} d4 {[%emt 0:06:51]} 42. Qd6 {[%emt 0:00:00]} Qc3 {[%emt 0:02:00]} 43. Qe5+ {[%emt 0:00:00]} Kg8 {[%emt 0:01:00]} 44. h4 {[%emt 0:00:00]} Qc4 {[%emt 0:00:33]} 45. Qd6 {[%emt 0:00:00]} d3 {[%emt 0:00:52]} 46. c6 {[%emt 0:00:00]} d2 {[%emt 0:02:42]} 47. Qxd2 {[%emt 0:00:00] Hoping for Qd8+.} (47. Qd8+ {is more complex.} Kg7 48. c7 Qc2 49. c8=Q) 47... Qxc6+ {[%emt 0:00:05]} 48. Kh2 {[%emt 0:00:00]} Qe4 {[%emt 0:00:36]} 49. Qe3 {[%emt 0:00:00]} Qc4 {[%emt 0:00:47]} 50. Qe5 {[%emt 0:00:00]} Qa2 {[%emt 0:00:35]} 51. Qd4 {[%emt 0:00:00]} Qb3 {[%emt 0:00:28]} 52. Kg2 {[%emt 0:00:00]} Qb7+ {[%emt 0:00:09]} 53. f3 {[%emt 0:00:00]} Qb3 {[%emt 0:00:10]} 54. g4 {[%emt 0:00:00]} (54. Qd2 $14 {deserves consideration.}) 54... Qb5 $11 {[%emt 0:01:21]} 55. Kg3 {[%emt 0:00:00]} Qb8+ {[%emt 0:00:54]} 56. Kh3 {[%emt 0:00:00]} Qb3 {[%emt 0:00:29]} 57. Qe4 {[%emt 0:00:17]} Qb5 {[%emt 0:00:27]} 58. Qe3 {[%emt 0:00:40]} Qd5 {[%emt 0:01:12]} 59. Kg3 {[%emt 0:00:39]} Qd6+ {[%emt 0:00:17]} 60. Kg2 {[%emt 0:00:32]} Qd5 {[%emt 0:00:12]} 61. Qg5 {[%emt 0:02:10]} Qa2+ {[%emt 0:06:39]} 62. Kg3 {[%emt 0:00:27]} Qa7 {[%emt 0:00:20]} 63. Qd2 {[%emt 0:00:54]} Qc7+ {[%emt 0:00:13]} 64. Kg2 {[%emt 0:01:14]} Qc5 {[%emt 0:00:11]} 65. Qd3 {[%emt 0:00:25]} Qe5 {[%emt 0:00:54]} 66. Qe4 {[%emt 0:00:38] Prevents Qe1.} Qb2+ {[%emt 0:00:04]} 67. Kg3 {[%emt 0:01:15]} Qb8+ {[%emt 0:00:14]} 68. Kh3 {[%emt 0:01:11]} (68. Qf4 $5 {[%cal Rf4b8]} Qa7 69. Qd2 $16) 68... Qb5 $1 {[%emt 0:00:11]} 69. Qe3 {[%emt 0:00:17]} Qd5 $1 {[%emt 0:00:15]} 70. f4 {[%emt 0:00:33]} (70. Kg2 $14) 70... Qb5 {[%emt 0:01:04] The position is equal.} 71. Kg3 {[%emt 0:00:14]} Qd5 {[%emt 0:00:29]} 72. Qf3 {[%emt 0:02:08]} Qc5 {[%emt 0:00:22]} 73. Kh3 {[%emt 0:00:15]} Kg7 {[%emt 0:01:13]} 74. g5 {[%emt 0:01:01]} Kg8 {[%emt 0:02:27]} 75. Kg2 {[%emt 0:00:40]} Qc2+ {[%emt 0:00:09]} 76. Kg3 {[%emt 0:00:22]} Qc5 {[%emt 0:00:11]} 77. f5 {[%emt 0:01:21]} gxf5 {[%emt 0:00:17]} 78. h5 {[%emt 0:01:10]} Qc1 {[%emt 0:02:12]} 79. Qxf5 {[%emt 0:00:42]} Qg1+ {[%emt 0:00:09]} 80. Kh4 {[%emt 0:00:43]} Qh2+ {[%emt 0:00:04]} 81. Kg4 {[%emt 0:00:11]} Qg2+ {[%emt 0:00:05]} 82. Kh4 {[%emt 0:00:50]} Qh2+ {[%emt 0:00:05] Black escapes into a draw.  Weighted Error Value: White=0.11 (very precise) /Black=0.11 (very precise)} 1/2-1/2